bitfinex/quotes_ETHUSD_20250210
["timestamp","ask_amount","ask_price","bid_price","bid_amount"]
[1739185537393,3.76438,2656.5,2656.3,2.17907988]
[1739185538429,6.76409,2656.7,2656.3,2.17907988]
[1739185538634,3.0,2656.7,2656.6,2.17907988]
[1739185539930,6.76406,2656.7,2656.6,2.17907988]
[1739185540535,3.0,2656.7,2656.6,2.17907988]
[1739185544004,3.76381,2656.9,2656.6,2.17907988]
[1739185544633,3.76366,2657.0,2656.6,2.17907988]
[1739185544818,3.76366,2657.0,2656.9,2.17907988]
[1739185545135,6.76366,2657.0,2656.9,2.17907988]
[1739185545303,7.51305968,2657.0,2656.9,2.17907988]
[1739185545498,4.51305968,2657.0,2656.9,2.17907988]
[1739185546153,0.74939968,2657.0,2656.9,2.17907988]
[1739185547826,0.74939968,2657.0,2656.8,4.35815976]
[1739185548026,0.1458829,2657.2,2656.8,4.35815976]
[1739185548369,0.1458829,2657.2,2657.1,2.17907988]
[1739185548660,0.1458829,2657.2,2657.1,2.34211093]
[1739185551343,0.1458829,2657.2,2657.1,6.10561093]
[1739185551728,0.1458829,2657.2,2657.1,2.34211093]
[1739185553029,0.1458829,2657.2,2657.1,7.59211093]
[1739185554562,0.1458829,2657.2,2657.1,11.35561093]
[1739185555935,0.1458829,2657.2,2657.1,7.59211093]
[1739185556133,0.74608078,2657.9,2657.1,11.35561093]
[1739185556463,6.76244,2657.9,2657.8,2.17907988]
[1739185556878,6.76244,2657.9,2657.8,2.34081236]
[1739185557854,6.76244,2657.9,2657.8,2.17907988]
[1739185558569,3.76286,2657.6,2657.5,2.17907988]
[1739185558773,3.76286,2657.6,2657.5,2.34087467]
[1739185559573,3.76251,2657.8,2657.5,2.34087467]
[1739185559768,3.76269,2657.7,2657.5,2.34087467]
[1739185559972,3.76251,2657.8,2657.5,2.34087467]
[1739185560155,3.76279,2657.6,2657.5,2.34087467]
[1739185561884,4.52749,2657.6,2657.5,2.34087467]
[1739185562291,8.07749,2657.6,2657.5,0.16179479]
[1739185562709,8.07749,2657.6,2657.5,4.79e-06]
[1739185562911,3.76364,2657.0,2656.9,2.17907988]
[1739185563186,3.76364,2657.0,2656.9,2.329531]
[1739185563355,6.76364,2657.0,2656.9,2.329531]
[1739185563556,6.76364,2657.0,2656.9,0.15045112]
[1739185563768,3.0,2656.9,2656.6,2.17907988]
[1739185563975,4.52876,2656.7,2656.6,2.17907988]
[1739185564157,4.52876,2656.7,2656.6,2.32430784]
[1739185564491,3.76406,2656.7,2656.6,2.32430784]
[1739185566587,3.76393,2656.8,2656.6,2.32430784]
[1739185566791,3.76372,2657.0,2656.6,2.32430784]
[1739185567106,3.76344,2657.2,2656.9,2.17907988]
[1739185567383,3.76344,2657.2,2657.0,0.14561889]
[1739185567986,6.76329,2657.3,2657.0,0.14561889]
[1739185568187,6.76329,2657.3,2657.2,2.17907988]
[1739185568388,3.0,2657.3,2657.2,2.32449063]
[1739185568619,3.76292,2657.6,2657.2,2.32449063]
[1739185568919,0.7996,2657.9,2657.5,2.17907988]
[1739185568920,7.52517,2657.8,2657.5,2.17907988]
[1739185569231,7.52517,2657.8,2657.6,0.14509704]
[1739185569232,3.76255,2657.8,2657.6,0.14509704]
[1739185570410,3.76211,2658.1,2657.6,3.90788704]
[1739185570709,3.76203,2658.2,2657.9,2.17907988]
[1739185570908,3.76203,2658.2,2658.1,2.17907988]
[1739185571083,6.76203,2658.2,2658.1,2.17907988]
[1739185571283,6.76203,2658.2,2658.1,2.32378491]
[1739185571904,3.76673,2658.4,2658.1,0.14470503]
[1739185571905,0.005,2658.4,2658.1,0.14470503]
[1739185572108,0.005,2658.4,2658.3,2.17907988]
[1739185572510,3.76194,2658.2,2658.1,0.14470503]
[1739185572721,3.76222,2658.0,2657.9,2.17907988]
[1739185574720,3.76265,2657.7,2657.6,2.17907988]
[1739185575488,3.76236,2657.9,2657.6,2.17907988]
[1739185576109,3.76265,2657.7,2657.6,2.17907988]
[1739185576516,3.76257,2657.8,2657.6,2.17907988]
[1739185576810,3.76265,2657.7,2657.6,2.17907988]
[1739185577206,6.76265,2657.7,2657.6,2.17907988]
[1739185577409,3.76307,2657.4,2657.3,2.17907988]
[1739185578441,3.7635,2657.1,2657.0,2.17907988]
[1739185578641,3.76392,2656.8,2656.7,2.17907988]
[1739185580656,3.7642,2656.6,2656.5,2.90973981]
[1739185581706,6.7642,2656.6,2656.5,2.90973981]
[1739185582015,3.76435,2656.5,2656.4,2.17907988]
[1739185582214,4.31435,2656.5,2656.4,2.17907988]
[1739185582542,3.76477,2656.2,2656.1,2.17907988]
[1739185583558,7.52887,2656.5,2656.1,2.17907988]
[1739185583778,3.76441,2656.5,2656.4,2.17907988]
[1739185584255,6.76441,2656.5,2656.4,2.17907988]
[1739185584956,6.76441,2656.5,2656.4,2.28869339]
[1739185585259,6.76441,2656.5,2656.4,2.17907988]
[1739185585954,6.76441,2656.5,2656.4,2.28480737]
[1739185586156,3.76421,2656.6,2656.4,2.28480737]
[1739185586358,0.7996,2657.1,2656.4,2.28480737]
[1739185586661,3.76322,2657.3,2657.0,2.17907988]
[1739185586865,3.76322,2657.3,2657.2,2.17907988]
[1739185587166,0.52175758,2657.4,2657.2,2.17907988]
[1739185587460,0.52175758,2657.4,2657.2,2.27344219]
[1739185587763,3.76321,2657.4,2657.2,2.27344219]
[1739185588057,3.76321,2657.3,2657.2,2.27344219]
[1739185589353,3.76321,2657.4,2657.2,2.27344219]
[1739185589762,6.76286,2657.6,2657.2,2.27344219]
[1739185589922,3.76286,2657.6,2657.2,2.27344219]
[1739185590122,3.76286,2657.6,2657.5,2.17907988]
[1739185590323,3.76255,2657.8,2657.5,2.17907988]
[1739185590522,3.76255,2657.8,2657.5,2.27174649]
[1739185591141,3.0,2657.9,2657.5,2.27174649]
[1739185591480,4.56162,2658.2,2657.8,2.17907988]
[1739185591983,6.76216,2658.1,2657.9,0.09211096]
[1739185592485,6.76222,2658.0,2657.9,0.09211096]
[1739185592647,3.76262,2657.8,2657.5,2.17907988]
[1739185592846,0.7996,2658.2,2657.5,2.17907988]
[1739185592847,3.76279,2657.6,2657.5,2.17907988]
[1739185593660,3.76279,2657.6,2657.5,2.27113347]
[1739185594059,6.76279,2657.6,2657.5,2.27113347]
[1739185594471,6.76279,2657.6,2656.5,3.76434]
[1739185594472,3.76321,2657.3,2657.2,13.26268278]
[1739185594683,3.76321,2657.3,2657.2,2.17907988]
[1739185594979,3.76321,2657.3,2657.2,2.27071668]
[1739185596277,4.56281,2657.3,2657.2,0.0916368]
[1739185596485,0.7996,2657.3,2656.9,2.17907988]
[1739185596645,3.76364,2657.0,2656.9,2.17907988]
[1739185596849,3.7635,2657.1,2656.9,2.17907988]
[1739185597555,3.76364,2657.0,2656.9,2.17907988]
[1739185597754,3.76391,2656.9,2656.8,2.67324735]
[1739185597987,3.76416,2656.7,2656.5,2.67324735]
[1739185598983,7.52834,2656.7,2656.5,2.67324735]
[1739185599179,3.76416,2656.7,2656.5,2.67324735]
[1739185599581,3.7642,2656.6,2656.5,2.67324735]
[1739185601285,3.76416,2656.7,2656.5,2.67324735]
[1739185601800,3.76393,2656.8,2656.5,2.67324735]
[1739185602898,3.76415,2656.7,2656.5,2.67324735]
[1739185603326,3.7642,2656.6,2656.5,2.67324735]
[1739185603693,3.76415,2656.7,2656.5,2.67324735]
[1739185603990,7.52831,2656.7,2656.5,2.67324735]
[1739185604186,3.7642,2656.6,2656.5,2.67324735]
[1739185604798,3.7646,2656.4,2656.2,10.8333158]
[1739185605018,3.76463,2656.3,2656.2,10.8333158]
[1739185605321,3.7646,2656.4,2656.2,10.8333158]
[1739185605629,3.7646,2656.4,2656.2,7.92324735]
[1739185607012,3.76458,2656.4,2656.2,7.92324735]
[1739185607414,3.76457,2656.4,2656.2,7.92324735]
[1739185608136,3.76463,2656.3,2656.2,7.92324735]
[1739185608653,3.76463,2656.3,2656.2,8.01603717]
[1739185609305,3.76463,2656.3,2656.2,2.76603717]
[1739185609880,4.55413,2656.3,2656.2,0.09278982]
[1739185610132,0.7895,2656.3,2655.9,2.67324735]
[1739185610337,3.76479,2656.2,2655.9,2.67324735]
[1739185610901,7.52965,2656.2,2655.9,2.67324735]
[1739185611538,3.76479,2656.2,2655.9,2.67324735]
[1739185611835,3.0,2656.5,2655.9,2.67324735]
[1739185612139,3.0,2656.5,2656.2,2.67324735]
[1739185612339,3.76449,2656.4,2656.2,2.67324735]
[1739185613705,3.76463,2656.3,2656.2,2.67324735]
[1739185614037,3.76449,2656.4,2656.2,2.67324735]
[1739185615038,3.76463,2656.3,2656.2,2.67324735]
[1739185615414,3.76449,2656.4,2656.2,2.67324735]
[1739185616340,7.5291,2656.4,2656.2,2.67324735]
[1739185616531,3.76449,2656.4,2656.2,2.67324735]
[1739185616731,3.76429,2656.6,2656.2,2.67324735]
[1739185617232,3.76452,2656.4,2656.2,2.67324735]
[1739185618721,3.76463,2656.3,2656.2,2.67324735]
[1739185619645,3.76463,2656.3,2656.2,2.17300584]
[1739185622048,3.76463,2656.3,2655.9,2.17300584]
[1739185622270,3.76506,2656.0,2655.9,2.17300584]
[1739185623750,7.52996,2656.1,2655.9,2.2633447]
[1739185623949,3.76506,2656.0,2655.9,2.2633447]
[1739185625650,3.76493,2656.1,2655.9,2.2633447]
[1739185626518,7.52941,2656.3,2655.9,2.2633447]
[1739185626725,0.833,2656.7,2656.2,2.17300584]
[1739185626916,3.76401,2656.8,2656.6,2.17300584]
[1739185627322,3.76406,2656.7,2656.6,2.17300584]
[1739185628159,3.76401,2656.8,2656.6,2.17300584]
[1739185628321,7.52691,2657.2,2656.6,5.9747149]
[1739185628526,3.76344,2657.2,2656.9,2.17300584]
[1739185629222,3.76352,2657.1,2656.9,2.17300584]
[1739185630153,3.76344,2657.2,2656.9,2.17300584]
[1739185630360,3.76316,2657.4,2656.9,2.17300584]
[1739185630570,3.76316,2657.4,2657.2,2.17300584]
[1739185630571,3.0,2657.3,2657.2,2.17300584]
[1739185630725,3.76283,2657.6,2657.2,2.17300584]
[1739185630924,7.52573,2657.6,2657.2,2.17300584]
[1739185631225,3.0,2657.5,2657.2,2.17300584]
[1739185631558,3.76283,2657.6,2657.2,2.17300584]
[1739185631727,3.76283,2657.6,2657.5,2.17300584]
[1739185631927,6.76283,2657.6,2657.5,2.17300584]
[1739185632473,3.76321,2657.3,2657.2,2.17300584]
[1739185634165,3.76309,2657.4,2657.2,2.17300584]
[1739185635136,7.52626,2657.4,2657.2,2.17300584]
[1739185635366,3.76309,2657.4,2657.2,2.17300584]
[1739185635536,4.52277,2657.6,2657.2,2.17300584]
[1739185635738,3.76296,2657.5,2657.2,2.17300584]
[1739185636052,3.76313,2657.4,2657.2,2.17300584]
[1739185636374,3.0,2657.5,2657.2,2.17300584]
[1739185636875,0.7599,2657.8,2657.2,2.17300584]
[1739185637036,3.76242,2657.9,2657.5,2.17300584]
[1739185637242,3.0,2657.8,2657.5,2.17300584]
[1739185637454,6.76259,2657.8,2657.5,2.17300584]
[1739185637650,0.7599,2658.2,2657.5,5.93593584]
[1739185637857,3.76194,2658.2,2658.1,2.17300584]
[1739185638150,6.76194,2658.2,2658.1,2.17300584]
[1739185638741,3.76194,2658.2,2658.1,2.26029586]
[1739185639444,6.76194,2658.2,2658.1,2.26029586]
[1739185639649,0.005,2658.4,2658.1,6.02235586]
[1739185639873,0.005,2658.4,2658.1,2.26029586]
[1739185640082,3.76671,2658.4,2658.1,2.26029586]
[1739185640475,3.76194,2658.2,2658.1,2.26029586]
[1739185641167,3.76194,2658.2,2658.1,0.08729002]
[1739185641368,6.76194,2658.2,2658.1,0.08729002]
[1739185641680,3.76236,2657.9,2657.8,2.17300584]
[1739185642578,3.76279,2657.6,2657.5,2.17300584]
[1739185643484,3.76266,2657.7,2657.5,2.17300584]
[1739185643671,3.76244,2657.9,2657.5,2.17300584]
[1739185643877,3.76204,2658.2,2657.8,2.17300584]
[1739185644185,3.0,2658.2,2658.1,2.17300584]
[1739185644402,7.52375,2658.3,2658.1,2.17300584]
[1739185645105,6.76194,2658.2,2658.1,2.17300584]
[1739185645951,6.76194,2658.2,2657.5,5.8336029]
[1739185645952,3.76237,2657.9,2657.8,2.17300584]
[1739185647247,3.76219,2658.1,2657.8,2.17300584]
[1739185647470,3.76228,2658.0,2657.8,2.17300584]
[1739185647772,3.76219,2658.1,2657.8,2.17300584]
[1739185648160,10.52376,2658.3,2657.8,2.17300584]
[1739185648361,10.52379,2658.3,2658.1,2.17300584]
[1739185648764,6.76186,2658.3,2658.1,2.17300584]
[1739185649074,3.76194,2658.2,2658.1,2.17300584]
[1739185649280,6.76186,2658.3,2658.1,2.17300584]
[1739185649768,3.0,2658.3,2658.1,2.17300584]
[1739185649965,0.005,2658.4,2658.3,3.7618]
[1739185650310,0.005,2658.4,2658.3,3.79941261]
[1739185650507,0.005,2658.4,2658.1,13.25660874]
[1739185650864,0.005,2658.4,2658.1,17.01868874]
[1739185651085,0.005,2658.4,2658.1,13.25660874]
[1739185651401,0.005,2658.4,2658.1,17.01867874]
[1739185651567,0.005,2658.4,2658.2,3.76186]
[1739185651782,0.005,2658.4,2658.1,17.01867874]
[1739185652086,0.005,2658.4,2658.1,13.25660874]
[1739185652259,3.7667,2658.4,2658.1,13.25660874]
[1739185652589,0.005,2658.4,2658.1,17.01863874]
[1739185652792,0.005,2658.4,2658.1,13.25660874]
[1739185653799,0.005,2658.4,2658.2,0.08287573]
[1739185654264,3.76673,2658.4,2658.2,0.08287573]
[1739185655364,0.005,2658.4,2658.2,3.84474573]
[1739185655595,0.005,2658.4,2658.2,0.08287573]
[1739185655970,3.7618,2658.3,2658.2,0.08287573]
[1739185657901,6.7618,2658.3,2658.2,0.08287573]
[1739185658802,7.5329,2658.3,2658.2,0.08287573]
[1739185658997,3.76236,2657.9,2657.8,2.17300584]
[1739185659201,3.76236,2657.9,2657.5,11.0836029]
[1739185659202,4.53346,2657.9,2657.5,13.25660874]
[1739185659507,3.76279,2657.6,2657.5,2.17300584]
[1739185660879,3.76327,2657.3,2657.2,2.17300584]
[1739185661999,3.76315,2657.4,2657.2,2.17300584]
[1739185662497,3.76321,2657.3,2657.2,2.17300584]
[1739185662994,3.76303,2657.5,2657.2,2.17300584]
[1739185663494,3.76309,2657.4,2657.2,2.17300584]
[1739185664773,7.53399,2657.6,2657.2,2.17300584]
[1739185665098,6.76289,2657.6,2657.5,2.17300584]
[1739185666697,4.53431,2657.3,2657.2,2.17300584]
[1739185667106,3.76311,2657.4,2657.2,2.17300584]
[1739185667397,7.52626,2657.4,2657.2,2.17300584]
[1739185667605,3.76321,2657.3,2657.2,2.17300584]
[1739185668686,3.76321,2657.3,2657.2,2.25335417]
[1739185674400,3.76311,2657.4,2657.2,2.25335417]
[1739185674698,3.76321,2657.3,2657.2,2.25335417]
[1739185675704,3.76286,2657.6,2657.2,2.25335417]
[1739185675906,3.76265,2657.7,2657.5,2.17300584]
[1739185676214,3.76265,2657.7,2657.6,0.0809267]
[1739185676692,3.76251,2657.8,2657.6,0.0809267]
[1739185677321,3.0,2657.7,2657.6,0.0809267]
[1739185677618,6.76265,2657.7,2657.6,0.0809267]
[1739185677797,3.0,2657.7,2657.6,0.0809267]
[1739185678119,6.76265,2657.7,2657.6,0.0809267]
[1739185679515,3.76312,2657.4,2657.2,2.17300584]
[1739185679726,3.76321,2657.3,2657.2,2.17300584]
[1739185680836,6.76321,2657.3,2657.2,2.17300584]
[1739185680989,6.76321,2657.3,2656.6,5.25]
[1739185680990,3.76406,2656.7,2656.6,2.17300584]
[1739185681189,3.76452,2656.4,2656.3,2.17300584]
[1739185682129,3.0,2656.6,2656.3,2.17300584]
[1739185682326,6.76432,2656.6,2656.3,2.17300584]
[1739185682502,3.0,2656.6,2656.3,2.17300584]
[1739185682701,6.76431,2656.6,2656.3,2.17300584]
[1739185683227,3.76435,2656.5,2656.3,2.17300584]
[1739185683412,4.56969,2656.4,2656.3,2.17300584]
[1739185683926,7.56969,2656.4,2656.3,2.25221711]
[1739185684090,6.76449,2656.4,2656.3,2.25221711]
[1739185686115,8.11969,2656.4,2656.3,4.25e-06]
[1739185686312,3.76591,2655.4,2655.3,2.17300584]
[1739185686524,3.76588,2655.5,2655.3,2.17300584]
[1739185686924,3.0,2655.6,2655.3,2.17300584]
[1739185687225,3.76553,2655.7,2655.3,2.17300584]
[1739185687532,7.53112,2655.7,2655.3,2.17300584]
[1739185687823,3.76562,2655.6,2655.3,2.17300584]
[1739185688041,3.76591,2655.4,2655.3,2.17300584]
[1739185688630,4.59761,2655.4,2655.3,2.17300584]
[1739185688798,3.76591,2655.4,2655.3,2.17300584]
[1739185689844,4.59732,2655.7,2655.3,2.17300584]
[1739185689997,7.5306,2655.9,2655.6,2.17300584]
[1739185690196,3.76527,2655.9,2655.6,2.17300584]
[1739185691010,3.0,2656.0,2655.6,2.17300584]
[1739185691303,8.36114,2656.3,2655.9,2.17300584]
[1739185691496,3.76448,2656.5,2656.2,2.17300584]
[1739185692141,3.76463,2656.3,2656.2,2.17300584]
[1739185693147,3.76509,2656.0,2655.9,2.17300584]
[1739185693684,3.76492,2656.1,2655.9,2.17300584]
[1739185693851,3.76506,2656.0,2655.9,2.24191686]
[1739185695086,3.76492,2656.1,2655.9,2.24191686]
[1739185695434,3.76506,2656.0,2655.9,2.24191686]
[1739185696177,4.59676,2656.0,2655.9,0.06891102]
[1739185696470,5.14676,2656.0,2655.9,0.06891102]
[1739185696646,3.76548,2655.7,2655.6,2.17300584]
[1739185696874,3.76535,2655.8,2655.6,2.17300584]
[1739185697048,3.76492,2656.1,2655.6,2.17300584]
[1739185697232,3.76521,2655.9,2655.4,3.7658]
[1739185697951,6.76511,2656.0,2655.4,3.7658]
[1739185698175,6.76511,2656.0,2655.9,2.17300584]
[1739185698673,6.76511,2656.0,2655.9,2.24255905]
[1739185699038,6.76511,2656.0,2655.9,2.17300584]
[1739185699266,6.76511,2656.0,2655.9,2.24255905]
[1739185699787,3.76471,2656.3,2655.9,2.24255905]
[1739185699987,3.76471,2656.3,2656.2,2.17300584]
[1739185700268,3.76506,2656.0,2655.9,2.24255905]
[1739185700447,3.76492,2656.1,2655.9,2.17300584]
[1739185700648,0.8317,2656.3,2655.9,2.17300584]
[1739185700649,3.76471,2656.3,2655.9,2.17300584]
[1739185700850,7.52948,2656.3,2655.9,2.17300584]
[1739185701254,7.52944,2656.3,2655.9,2.17300584]
[1739185701644,3.76471,2656.3,2655.9,2.17300584]
[1739185701843,3.76442,2656.5,2656.2,2.17300584]
[1739185702273,3.7645,2656.4,2656.2,2.17300584]
[1739185702971,3.76442,2656.5,2656.2,2.17300584]
[1739185704755,3.0,2656.6,2656.2,2.17300584]
[1739185704940,6.76428,2656.6,2656.2,2.17300584]
[1739185705345,6.76428,2656.6,2656.5,2.17300584]
[1739185706284,3.76462,2656.4,2656.2,2.17300584]
[1739185706468,3.76463,2656.3,2656.2,2.17300584]
[1739185707376,4.59633,2656.3,2656.2,2.17300584]
[1739185707588,3.76506,2656.0,2655.9,2.17300584]
[1739185709593,3.7655,2655.7,2655.6,2.17300584]
[1739185709956,3.7655,2655.7,2655.6,2.24224629]
[1739185710476,3.7655,2655.7,2655.6,0.06924045]
[1739185710868,3.76591,2655.4,2655.3,2.17300584]
[1739185711081,3.76591,2655.4,2655.3,2.2423087]
[1739185711979,3.76577,2655.5,2655.3,2.2423087]
[1739185712295,3.76589,2655.5,2655.3,2.2423087]
[1739185713075,3.76554,2655.7,2655.3,2.2423087]
[1739185713693,7.53112,2655.7,2655.3,2.2423087]
[1739185713889,3.76579,2655.5,2655.3,2.2423087]
[1739185714109,3.76591,2655.4,2655.3,2.2423087]
[1739185715400,3.76562,2655.6,2655.3,2.2423087]
[1739185715606,3.76548,2655.7,2655.3,2.2423087]
[1739185715806,3.0,2655.6,2655.3,2.2423087]
[1739185716580,6.76569,2655.6,2655.3,2.2423087]
[1739185716788,3.76591,2655.4,2655.3,2.2423087]
[1739185717506,3.0,2655.6,2655.3,2.2423087]
[1739185718084,0.8317,2655.8,2655.3,2.2423087]
[1739185718289,3.76585,2655.5,2655.3,2.2423087]
[1739185718499,3.76584,2655.5,2655.3,2.2423087]
[1739185719099,3.76591,2655.4,2655.3,2.2423087]
[1739185719609,4.57451,2655.4,2655.3,2.2423087]
[1739185720480,3.76584,2655.5,2655.3,2.2423087]
[1739185720678,3.76591,2655.4,2655.3,2.2423087]
[1739185722218,3.76584,2655.5,2655.3,2.2423087]
[1739185723511,3.76552,2655.7,2655.3,2.2423087]
[1739185723713,3.76552,2655.7,2655.6,2.17300584]
[1739185724011,3.76552,2655.7,2655.6,2.24288857]
[1739185724712,3.76524,2655.9,2655.6,2.24288857]
[1739185724917,3.76508,2656.0,2655.6,2.24288857]
[1739185725882,3.76508,2656.0,2655.9,2.17300584]
[1739185726091,3.76508,2656.0,2655.9,2.24282618]
[1739185727822,3.76508,2656.0,2655.9,0.06982034]
[1739185728320,3.76529,2655.9,2655.6,2.17300584]
[1739185728825,3.76534,2655.8,2655.7,0.06986193]
[1739185729197,4.52894,2655.8,2655.7,0.06986193]
[1739185730706,5.07894,2655.8,2655.7,0.06986193]
[1739185731036,3.76548,2655.7,2655.6,2.17300584]
[1739185731550,3.76548,2655.7,2655.6,0.07005442]
[1739185731834,3.76548,2655.7,2655.3,2.17300584]
[1739185732004,3.76548,2655.7,2655.6,0.07005442]
[1739185732339,3.76548,2655.7,2655.6,2.24306026]
[1739185735651,3.76548,2655.7,2655.6,0.07005442]
[1739185736140,3.76591,2655.4,2655.3,2.17300584]
[1739185741111,3.76591,2655.4,2654.7,9.01678]
[1739185741112,3.76676,2654.8,2654.7,2.17300584]
[1739185741415,3.76718,2654.5,2654.4,7.42300584]
[1739185742522,3.76741,2654.4,2654.1,2.17300584]
[1739185742851,3.76761,2654.2,2654.1,2.17300584]
[1739185743353,3.76719,2654.5,2654.1,2.17300584]
[1739185743549,3.76719,2654.5,2654.2,0.06341525]
[1739185743949,4.53152,2654.6,2654.2,0.06341525]
[1739185744124,3.76747,2654.3,2654.2,0.06341525]
[1739185744325,3.76735,2654.4,2654.2,0.06341525]
[1739185745248,3.76747,2654.3,2654.2,0.06341525]
[1739185745556,3.76735,2654.4,2654.2,0.06341525]
[1739185745852,3.76747,2654.3,2654.2,0.06341525]
[1739185746151,3.51867,2654.3,2654.2,0.06341525]
[1739185746334,4.53146,2654.6,2654.2,0.06341525]
[1739185746536,3.76706,2654.6,2654.4,2.17300584]
[1739185746942,3.76706,2654.6,2654.5,0.06335279]
[1739185747247,6.76706,2654.6,2654.5,0.06335279]
[1739185747550,3.76755,2654.3,2654.1,2.17300584]
[1739185747728,3.76761,2654.2,2654.1,2.17300584]
[1739185748058,7.53512,2654.3,2654.1,2.17300584]
[1739185748348,3.76761,2654.2,2654.1,2.17300584]
[1739185749438,3.76789,2654.0,2653.9,5.25]
[1739185750526,4.53433,2653.9,2653.8,2.17300584]
[1739185750730,3.76852,2653.6,2653.5,2.17300584]
[1739185750932,3.76874,2653.4,2653.3,5.25]
[1739185751861,3.76889,2653.3,2653.2,2.17300584]
[1739185752459,3.76931,2653.0,2652.9,2.17300584]
[1739185753457,3.76917,2653.2,2652.9,2.17300584]
[1739185753822,3.7685,2653.6,2652.9,5.94245584]
[1739185754155,3.0,2653.5,2653.3,2.17300584]
[1739185754653,6.76862,2653.5,2653.3,2.17300584]
[1739185755456,3.76874,2653.4,2653.3,2.17300584]
[1739185755662,6.76862,2653.5,2653.3,2.17300584]
[1739185755829,3.76874,2653.4,2653.3,2.17300584]
[1739185756536,3.7691,2653.2,2653.0,2.17300584]
[1739185756927,3.76877,2653.4,2653.0,2.17300584]
[1739185757127,3.76877,2653.4,2653.3,2.17300584]
[1739185758441,3.0,2653.6,2653.3,2.17300584]
[1739185758641,6.7685,2653.6,2653.3,2.23022688]
[1739185758826,3.0,2653.6,2653.3,2.23022688]
[1739185759225,3.76874,2653.4,2653.3,2.23022688]
[1739185761245,3.76871,2653.5,2653.3,2.23022688]
[1739185761459,3.0,2653.6,2653.3,2.23022688]
[1739185763122,0.7663,2654.1,2653.4,3.76871]
[1739185763327,3.76756,2654.3,2654.0,2.17300584]
[1739185763526,3.76756,2654.3,2654.1,0.05677448]
[1739185763756,3.76761,2654.2,2654.1,0.05677448]
[1739185767259,7.53391,2654.2,2654.1,0.05677448]
[1739185767673,3.76806,2653.9,2653.7,7.42300584]
[1739185769780,3.7678,2654.1,2653.7,7.42300584]
[1739185770067,3.7678,2654.1,2653.6,3.76845]
[1739185770068,3.7678,2654.1,2654.0,2.17300584]
[1739185770440,6.7678,2654.1,2654.0,2.17300584]
[1739185771736,3.7678,2654.1,2654.0,2.17300584]
[1739185772335,3.7675,2654.3,2654.0,2.17300584]
[1739185772540,3.76761,2654.2,2654.0,2.17300584]
[1739185772941,6.76775,2654.1,2654.0,2.17300584]
[1739185773633,6.76775,2654.1,2654.0,2.22970575]
[1739185776274,6.76775,2654.1,2654.0,0.05669991]
[1739185776462,3.76808,2653.9,2653.7,7.42300584]
[1739185778579,3.0,2654.1,2653.7,11.19123584]
[1739185778745,4.53263,2655.1,2654.0,2.17300584]
[1739185779075,4.53263,2655.1,2653.4,6.4107029]
[1739185779076,4.53275,2655.1,2655.0,2.17300584]
[1739185779279,0.74129968,2655.1,2655.0,2.17300584]
[1739185780991,3.76598,2655.4,2655.0,2.17300584]
[1739185781202,7.53201,2655.4,2655.0,2.17300584]
[1739185781701,3.76598,2655.4,2655.0,2.17300584]
[1739185781847,6.76598,2655.4,2655.3,2.17300584]
[1739185782267,3.0,2655.4,2655.3,2.17300584]
[1739185782578,3.0,2655.4,2655.3,2.22846231]
[1739185782579,6.76591,2655.4,2655.3,2.22846231]
[1739185782786,6.76591,2655.4,2655.3,2.17300584]
[1739185783591,6.76591,2655.4,2655.3,2.22846231]
[1739185784083,4.53296203,2655.7,2655.3,2.22846231]
[1739185784292,0.76743203,2655.7,2655.6,2.17300584]
[1739185784489,3.76496,2656.1,2655.6,5.93862584]
[1739185784788,3.76496,2656.1,2656.0,2.17300584]
[1739185784988,6.76496,2656.1,2656.0,2.17300584]
[1739185785191,6.76496,2656.1,2656.0,2.22808797]
[1739185786463,7.51707959,2656.1,2656.0,2.22808797]
[1739185789497,6.76496,2656.1,2656.0,2.22808797]
[1739185790978,6.76496,2656.1,2656.0,0.05508213]
[1739185791598,3.76534,2655.8,2655.7,2.17300584]
[1739185794674,6.76516,2656.0,2655.7,2.17300584]
[1739185794883,3.76516,2656.0,2655.7,2.17300584]
[1739185795785,3.76506,2656.0,2655.7,2.17300584]
[1739185796502,3.76501,2656.1,2655.7,2.17300584]
[1739185796688,6.76501,2656.1,2656.0,2.17300584]
[1739185797720,6.76501,2656.1,2655.6,5.25]
[1739185797721,6.76501,2656.1,2655.7,2.17300584]
[1739185797879,3.7653,2655.9,2655.7,2.17300584]
[1739185799709,3.76513,2656.0,2655.7,2.17300584]
[1739185800180,6.76493,2656.1,2655.7,2.17300584]
[1739185800385,3.76521,2655.9,2655.7,2.17300584]
[1739185800716,6.76493,2656.1,2655.7,2.17300584]
[1739185801100,3.76506,2656.0,2655.6,5.25]
[1739185801298,3.76506,2656.0,2655.9,2.17300584]
[1739185801604,3.76548,2655.7,2655.6,7.42300584]
[1739185801914,3.76548,2655.7,2655.6,7.47318366]
[1739185802619,3.7652,2655.9,2655.6,7.47318366]
[1739185802817,3.76508,2656.0,2655.6,7.47318366]
[1739185802989,3.76508,2656.0,2655.9,2.17300584]
[1739185803345,3.76508,2656.0,2655.9,2.22134725]
[1739185803529,6.76508,2656.0,2655.9,2.22134725]
[1739185804027,6.76508,2656.0,2655.9,0.04834141]
[1739185804184,7.51828,2656.0,2655.6,7.42300584]
[1739185804382,3.76548,2655.7,2655.6,7.42300584]
[1739185806431,3.76531,2655.9,2655.6,7.42300584]
[1739185806633,6.76516,2656.0,2655.6,7.42300584]
[1739185806814,10.53032,2656.0,2655.9,2.17300584]
[1739185807216,3.76483,2656.2,2655.9,2.17300584]
[1739185807422,3.76492,2656.1,2655.9,2.17300584]
[1739185809102,3.76478,2656.2,2655.9,2.17300584]
[1739185809517,3.76464,2656.3,2655.9,2.17300584]
[1739185809720,3.76464,2656.3,2656.2,2.17300584]
[1739185810251,3.0,2656.4,2656.2,2.17300584]
[1739185810603,0.74204493,2656.6,2656.2,2.17300584]
[1739185810834,4.50632493,2656.6,2656.5,2.17300584]
[1739185811240,7.50632493,2656.6,2656.5,2.17300584]
[1739185812313,3.76463,2656.3,2656.2,2.17300584]
[1739185814220,6.76463,2656.3,2656.2,2.17300584]
[1739185817646,3.76506,2656.0,2655.9,2.17300584]
[1739185818352,3.76493,2656.1,2655.9,2.17300584]